{"text_format":"1","workbook":"xlsx","n_sheets":1,"sheets":["فاتورة"],"not_rendered":{"charts":0,"images":0,"macros":1,"external_links":0,"defined_names":0,"comments":0,"pivot_tables":0},"unopened":[],"bounds":{"document_bytes":16777216,"sheet_cells":100000,"rows_first":2000,"rows_last":500,"rows_between":2000,"halvings":0,"cell_chars":16384,"cell_head_chars":4096},"cells_cut":0,"cells_raw":0,"read":"whole","date_system":"1900"}

{"sheet":"فاتورة","index":0,"n_rows":129,"n_cols":13,"rows_kept":129,"cut":false,"hidden":false,"merged":[[5,2,5,3],[6,2,6,3],[7,2,7,3],[8,2,8,3],[9,2,9,3],[27,0,27,1],[28,0,28,1],[0,0,1,4],[2,2,2,3],[3,2,3,3],[4,0,4,1],[4,2,4,3]]}
["فاتورة",null,null,null,null,null,null,"رقم \nالفاتورة","تاريخ الفاتورة","اسم العميل ","اجمالى \nالفاتورة"]
[null,null,null,null,null,null,null,1,"2021-10-05"]
[null,null,"الفاتورة #",null,1,null,null,2,"2021-10-06"]
[null,null,null,null,null,null,null,3,"2021-10-07"]
["القيمة المضافة :",null,"2021-10-05",null,"Date",null,null,4,"2021-10-08"]
["فاتورة إلى",null,null,null,"po",null,null,5,"2021-10-09"]
["اسم المشترى","عميل 1",null,null,null,null,null,6,"2021-10-10",null,null,null,"     "]
[null,null,"نوع الفاتورة",null,"اجل",null,null,7,"2021-10-11"]
["عنوانة /",null,"المدفوع",null,null,null,null,8,"2021-10-12"]
["تليفون /",null,"الباقى",null,{"$f":"IF(E32-E9<0,0,E32-E9)","v":76.275000000000006},null,null,9,"2021-10-13"]
[null,null,null,null,null,null,null,10,"2021-10-14"]
["م","البيان","سعر ","الكمية","المبلغ",null,null,11,"2021-10-15"]
[1,"خل بيور",3,5,{"$f":"SUM(C13*D13)","v":15},null,null,12,"2021-10-16"]
[2,"زبدة صفراء نيوزيلاندي",7.5,3,{"$f":"SUM(C14*D14)","v":22.5},null,null,13,"2021-10-17"]
[3,"زيت عافية 3 لتر",15,2,30,null,null,14,"2021-10-18"]
[null,null,null,null,0,null,null,15,"2021-10-19"]
[null,null,null,null,0,null,null,16,"2021-10-20"]
[null,null,null,null,0,null,null,17,"2021-10-21"]
[null,null,null,null,0,null,null,18,"2021-10-22"]
[null,null,null,null,0,null,null,19,"2021-10-23"]
[null,null,null,null,0,null,null,20,"2021-10-24"]
[null,null,null,null,0,null,null,21,"2021-10-25"]
[null,null,null,null,0,null,null,22,"2021-10-26"]
[null,null,null,null,0,null,null,23,"2021-10-27"]
[null,null,null,null,0,null,null,24,"2021-10-28"]
[null,null,null,null,0,null,null,25,"2021-10-29"]
[null,null,null,null,0,null,null,26,"2021-10-30"]
["شكراً لتعاملك معنا!",null,null,"الإجمالي الفرعي",{"$f":"SUM(E13:E27)","v":67.5},null,null,27,"2021-10-31"]
[null,null,null,"معدل الضريبة",0.14000000000000001,null,null,28,"2021-11-01"]
[null,null,null,"الخصم",{"$f":"E28*E29","v":9.4500000000000011},null,null,29,"2021-11-02"]
[null,null,null,"1%أ.ت.ص",{"$f":"E28*1%","v":0.67500000000000004},null,null,30,"2021-11-03"]
[null,null,null,"الإجمالي",{"$f":"E28+E30-E31","v":76.275000000000006},null,null,31,"2021-11-04"]
[null,null,null,null,null,null,null,32,"2021-11-05"]
[null,null,null,null,null,null,null,33,"2021-11-06"]
[null,null,null,null,null,null,null,34,"2021-11-07"]
[null,null,null,null,null,null,null,35,"2021-11-08"]
[null,null,null,null,null,null,null,36,"2021-11-09"]
[null,null,null,null,null,null,null,37,"2021-11-10"]
[null,null,null,null,null,null,null,38,"2021-11-11"]
[null,null,null,null,null,null,null,39,"2021-11-12"]
[null,null,null,null,null,null,null,40,"2021-11-13"]
[null,null,null,null,null,null,null,41,"2021-11-14"]
[null,null,null,null,null,null,null,42,"2021-11-15"]
[null,null,null,null,null,null,null,43,"2021-11-16"]
[null,null,null,null,null,null,null,44,"2021-11-17"]
[null,null,null,null,null,null,null,45,"2021-11-18"]
[null,null,null,null,null,null,null,46,"2021-11-19"]
[null,null,null,null,null,null,null,47,"2021-11-20"]
[null,null,null,null,null,null,null,48,"2021-11-21"]
[null,null,null,null,null,null,null,49,"2021-11-22"]
[null,null,null,null,null,null,null,50,"2021-11-23"]
[null,null,null,null,null,null,null,51,"2021-11-24"]
[null,null,null,null,null,null,null,52,"2021-11-25"]
[null,null,null,null,null,null,null,53,"2021-11-26"]
[null,null,null,null,null,null,null,54,"2021-11-27"]
[null,null,null,null,null,null,null,55,"2021-11-28"]
[null,null,null,null,null,null,null,56,"2021-11-29"]
[null,null,null,null,null,null,null,57,"2021-11-30"]
[null,null,null,null,null,null,null,58,"2021-12-01"]
[null,null,null,null,null,null,null,59,"2021-12-02"]
[null,null,null,null,null,null,null,60,"2021-12-03"]
[null,null,null,null,null,null,null,61,"2021-12-04"]
[null,null,null,null,null,null,null,62,"2021-12-05"]
[null,null,null,null,null,null,null,63,"2021-12-06"]
[null,null,null,null,null,null,null,64,"2021-12-07"]
[null,null,null,null,null,null,null,65,"2021-12-08"]
[null,null,null,null,null,null,null,66,"2021-12-09"]
[null,null,null,null,null,null,null,67,"2021-12-10"]
[null,null,null,null,null,null,null,68,"2021-12-11"]
[null,null,null,null,null,null,null,69,"2021-12-12"]
[null,null,null,null,null,null,null,70,"2021-12-13"]
[null,null,null,null,null,null,null,71,"2021-12-14"]
[null,null,null,null,null,null,null,72,"2021-12-15"]
[null,null,null,null,null,null,null,73,"2021-12-16"]
[null,null,null,null,null,null,null,74,"2021-12-17"]
[null,null,null,null,null,null,null,75,"2021-12-18"]
[null,null,null,null,null,null,null,76,"2021-12-19"]
[null,null,null,null,null,null,null,77,"2021-12-20"]
[null,null,null,null,null,null,null,78,"2021-12-21"]
[null,null,null,null,null,null,null,79,"2021-12-22"]
[null,null,null,null,null,null,null,80,"2021-12-23"]
[null,null,null,null,null,null,null,81,"2021-12-24"]
[null,null,null,null,null,null,null,82,"2021-12-25"]
[null,null,null,null,null,null,null,83,"2021-12-26"]
[null,null,null,null,null,null,null,84,"2021-12-27"]
[null,null,null,null,null,null,null,85,"2021-12-28"]
[null,null,null,null,null,null,null,86,"2021-12-29"]
[null,null,null,null,null,null,null,87,"2021-12-30"]
[null,null,null,null,null,null,null,88,"2021-12-31"]
[null,null,null,null,null,null,null,89,"2022-01-01"]
[null,null,null,null,null,null,null,90,"2022-01-02"]
[null,null,null,null,null,null,null,91,"2022-01-03"]
[null,null,null,null,null,null,null,92,"2022-01-04"]
[null,null,null,null,null,null,null,93,"2022-01-05"]
[null,null,null,null,null,null,null,94,"2022-01-06"]
[null,null,null,null,null,null,null,95,"2022-01-07"]
[null,null,null,null,null,null,null,96,"2022-01-08"]
[null,null,null,null,null,null,null,97,"2022-01-09"]
[null,null,null,null,null,null,null,98,"2022-01-10"]
[null,null,null,null,null,null,null,99,"2022-01-11"]
[null,null,null,null,null,null,null,100,"2022-01-12"]
[null,null,null,null,null,null,null,101,"2022-01-13"]
[null,null,null,null,null,null,null,102,"2022-01-14"]
[null,null,null,null,null,null,null,103,"2022-01-15"]
[null,null,null,null,null,null,null,104,"2022-01-16"]
[null,null,null,null,null,null,null,105,"2022-01-17"]
[null,null,null,null,null,null,null,106,"2022-01-18"]
[null,null,null,null,null,null,null,107,"2022-01-19"]
[null,null,null,null,null,null,null,108,"2022-01-20"]
[null,null,null,null,null,null,null,109,"2022-01-21"]
[null,null,null,null,null,null,null,110,"2022-01-22"]
[null,null,null,null,null,null,null,111,"2022-01-23"]
[null,null,null,null,null,null,null,112,"2022-01-24"]
[null,null,null,null,null,null,null,113,"2022-01-25"]
[null,null,null,null,null,null,null,114,"2022-01-26"]
[null,null,null,null,null,null,null,115,"2022-01-27"]
[null,null,null,null,null,null,null,116,"2022-01-28"]
[null,null,null,null,null,null,null,117,"2022-01-29"]
[null,null,null,null,null,null,null,118,"2022-01-30"]
[null,null,null,null,null,null,null,119,"2022-01-31"]
[null,null,null,null,null,null,null,120,"2022-02-01"]
[null,null,null,null,null,null,null,121,"2022-02-02"]
[null,null,null,null,null,null,null,122,"2022-02-03"]
[null,null,null,null,null,null,null,123,"2022-02-04"]
[null,null,null,null,null,null,null,124,"2022-02-05"]
[null,null,null,null,null,null,null,125,"2022-02-06"]
[null,null,null,null,null,null,null,126,"2022-02-07"]
[null,null,null,null,null,null,null,127,"2022-02-08"]
[null,null,null,null,null,null,null,128,"2022-02-09"]